[Event "Argentine Youth-Junior-ch 2025"]
[Site "Mar del Plata"]
[Date "2025.04.18"]
[Round "5.1"]
[White "Abramor, Franco"]
[Black "Unhold, Valentin"]
[Result "1/2-1/2"]
[Annotator "ChessBase"]
[ECO "C02"]
[WhiteElo "2169"]
[BlackElo "2149"]
[PlyCount "106"]
[EventDate "2025.04.14"]
[EventType "swiss"]
[EventCountry "ARG"]
[SourceTitle "playchess.com"]
[Source "ChessBase"]
[SourceQuality "1"]
[TimeControl "3600+30"]

1. e4 {[%emt 0:00:02]} e6 {[%emt 0:00:08]} 2. d4 {[%emt 0:00:06]} d5 {[%emt 0:00:07]} 3. e5 {[%emt 0:00:04]} c5 {[%emt 0:00:07]} 4. c3 {[%emt 0:00:08]} Nc6 {[%emt 0:00:09]} 5. Nf3 {[%emt 0:00:11]} Qb6 {[%emt 0:00:08]} 6. a3 {[%emt 0:00:11]} Nh6 {[%emt 0:00:09]} 7. Bd3 {[%emt 0:01:39]} cxd4 {[%emt 0:00:29]} 8. O-O {[%emt 0:01:13]} Bd7 {[%emt 0:02:16]} 9. b4 {[%emt 0:00:20]} Rc8 {[%emt 0:03:23]} 10. Bb2 {[%emt 0:05:28]} Nf5 {[%emt 0:00:50]} 11. Bxf5 {[%emt 0:01:10]} exf5 {[%emt 0:00:08]} 12. cxd4 {[%emt 0:00:19]} Be7 {[%emt 0:04:56]} 13. Nc3 {[%emt 0:00:09]} Be6 {[%emt 0:00:14]} 14. Qd3 {[%emt 0:05:53]} O-O {[%emt 0:08:36]} 15. Rfc1 {[%emt 0:00:01]} Qd8 {[%emt 0:03:54]} 16. Nd2 {[%emt 0:11:40]} f6 {[%emt 0:13:21]} 17. Ne2 {[%emt 0:00:49]} fxe5 {[%emt 0:05:07]} 18. dxe5 {[%emt 0:00:03]} f4 {[%emt 0:01:04]} 19. b5 {[%emt 0:00:52]} Na5 {[%emt 0:00:50]} 20. Nd4 {[%emt 0:00:44]} Qd7 {[%emt 0:00:56]} 21. N2f3 {[%emt 0:08:54]} Nc4 {[%emt 0:05:59]} 22. Rc2 {[%emt 0:09:11]} Rcd8 {[%emt 0:05:38]} 23. Nxe6 {[%emt 0:01:35]} Qxe6 {[%emt 0:00:07]} 24. Rd1 {[%emt 0:00:47]} h6 {[%emt 0:03:33]} 25. h3 {[%emt 0:00:08]} Bc5 {[%emt 0:01:51]} 26. Bd4 {[%emt 0:02:32]} b6 {[%emt 0:00:23]} 27. a4 {[%emt 0:00:01]} Kh8 {[%emt 0:02:12]} 28. Nh4 {[%emt 0:02:16]} Kg8 {[%emt 0:00:07]} 29. Qg6 {[%emt 0:01:18]} Qe8 {[%emt 0:05:29]} 30. e6 {[%emt 0:07:01]} Bxd4 {[%emt 0:00:08]} 31. Rxd4 {[%emt 0:00:09]} Ne5 {[%emt 0:01:13]} 32. Qxe8 {[%emt 0:00:22]} Rdxe8 {[%emt 0:00:49]} 33. Rxd5 {[%emt 0:00:22]} Rxe6 {[%emt 0:00:08]} 34. Rc7 {[%emt 0:02:36]} Rf7 {[%emt 0:02:01]} 35. Rxf7 {[%emt 0:05:55]} Nxf7 {[%emt 0:00:21]} 36. Rd7 {[%emt 0:00:45]} Re1+ {[%emt 0:00:33]} 37. Kh2 {[%emt 0:00:02]} Ne5 {[%emt 0:00:14]} 38. Rxa7 {[%emt 0:00:23]} Nd3 {[%emt 0:00:29]} 39. Ng6 {[%emt 0:02:41]} Kh7 {[%emt 0:00:33]} 40. Rd7 {[%emt 0:00:36]} Nc5 {[%emt 0:00:30]} 41. Nf8+ {[%emt 0:00:01]} Kg8 {[%emt 0:00:12]} 42. Rd8 {[%emt 0:00:01]} Kf7 {[%emt 0:00:23]} 43. Rc8 {[%emt 0:02:23]} Re8 {[%emt 0:00:43]} 44. Rxe8 {[%emt 0:00:10]} Kxe8 {[%emt 0:00:05]} 45. Ng6 {[%emt 0:00:12]} Nxa4 {[%emt 0:00:12]} 46. Nxf4 {[%emt 0:00:59]} Kd7 {[%emt 0:01:53]} 47. Kg3 {[%emt 0:01:02]} Nc3 {[%emt 0:00:21]} 48. Kf3 {[%emt 0:00:15]} Kd6 {[%emt 0:00:45]} 49. h4 {[%emt 0:00:17]} Nxb5 {[%emt 0:00:14]} 50. Ke4 {[%emt 0:00:20]} Nc7 {[%emt 0:00:35]} 51. g4 {[%emt 0:00:45]} g5 {[%emt 0:00:36]} 52. hxg5 {[%emt 0:00:53]} hxg5 {[%emt 0:00:06]} 53. Nd3 {[%emt 0:00:23]} Ne6 {[%emt 0:01:45]} 1/2-1/2

[Event "Argentine Youth-Junior-ch 2025"]
[Site "Mar del Plata"]
[Date "2025.04.18"]
[Round "5.2"]
[White "Scarsi, Anna Laura"]
[Black "Aguirre, Bruno"]
[Result "1-0"]
[Annotator "NA"]
[ECO "B01"]
[WhiteElo "2144"]
[BlackElo "1759"]
[PlyCount "113"]
[EventDate "2025.04.14"]
[EventType "swiss"]
[EventCountry "ARG"]
[SourceTitle "playchess.com"]
[Source "ChessBase"]
[SourceQuality "1"]
[TimeControl "3600+30"]

1. e4 {[%emt 0:00:02]} d5 {[%emt 0:00:24]} 2. exd5 {[%emt 0:00:07]} Nf6 {[%emt 0:00:05]} 3. d4 {[%emt 0:00:03]} Bg4 {[%emt 0:00:27]} 4. f3 {[%emt 0:00:07]} Bf5 {[%emt 0:00:11]} 5. Bb5+ {[%emt 0:02:18]} Nbd7 {[%emt 0:02:13]} 6. c4 {[%emt 0:05:49]} e6 {[%emt 0:00:35]} 7. dxe6 {[%emt 0:07:50]} fxe6 {[%emt 0:00:28]} 8. Nc3 {[%emt 0:03:02]} c6 {[%emt 0:01:32]} 9. Ba4 {[%emt 0:00:13]} Nb6 {[%emt 0:00:29]} 10. Bb3 {[%emt 0:00:22]} Bb4 {[%emt 0:10:47]} 11. Nge2 {[%emt 0:01:09]} c5 {[%emt 0:09:25]} 12. Be3 {[%emt 0:02:43]} Qe7 {[%emt 0:02:26]} 13. dxc5 {[%emt 0:07:07]} Rd8 {[%emt 0:01:25]} 14. Qc1 {[%emt 0:01:45]} Bxc5 {[%emt 0:01:05]} 15. O-O {[%emt 0:07:53]} Rd3 {[%emt 0:01:00]} 16. Bxc5 {[%emt 0:00:40]} Qxc5+ {[%emt 0:00:13]} 17. Kh1 {[%emt 0:00:10]} O-O {[%emt 0:02:59]} 18. Bc2 {[%emt 0:08:31]} Rd7 {[%emt 0:03:16]} 19. b3 {[%emt 0:00:50]} Rfd8 {[%emt 0:00:53]} 20. Bxf5 {[%emt 0:00:10]} exf5 {[%emt 0:00:18]} 21. Qe1 {[%emt 0:00:33]} Re8 {[%emt 0:06:17]} 22. Qf2 {[%emt 0:02:28]} Qe5 {[%emt 0:01:04]} 23. Rad1 {[%emt 0:02:36]} Rde7 {[%emt 0:03:30]} 24. Rd2 {[%emt 0:02:42]} f4 {[%emt 0:01:01]} 25. Qd4 {[%emt 0:02:24]} g5 {[%emt 0:00:33]} 26. Qxe5 {[%emt 0:00:21]} Rxe5 {[%emt 0:00:06]} 27. Kg1 {[%emt 0:00:29]} Re3 {[%emt 0:00:57]} 28. Rfd1 {[%emt 0:01:04]} Nc8 {[%emt 0:01:14]} 29. Rd8 {[%emt 0:00:49]} Kf7 {[%emt 0:01:04]} 30. Rxe8 {[%emt 0:00:08]} Rxe8 {[%emt 0:00:33]} 31. Kf2 {[%emt 0:00:16]} Ne7 {[%emt 0:01:35]} 32. Nb5 {[%emt 0:00:21]} Nf5 {[%emt 0:00:47]} 33. Nd6+ {[%emt 0:01:31]} Nxd6 {[%emt 0:00:27]} 34. Rxd6 {[%emt 0:00:05]} Re6 {[%emt 0:02:43]} 35. Rd1 {[%emt 0:00:42]} Ra6 {[%emt 0:01:11]} 36. Nc3 {[%emt 0:00:38]} h5 {[%emt 0:00:57]} 37. Rd2 {[%emt 0:00:42]} Re6 {[%emt 0:01:54]} 38. h4 {[%emt 0:01:23]} g4 {[%emt 0:02:54]} 39. Ne2 {[%emt 0:00:36]} g3+ {[%emt 0:00:37]} 40. Kf1 {[%emt 0:00:06]} b5 {[%emt 0:06:49]} 41. Nxf4 {[%emt 0:00:46]} Rc6 {[%emt 0:00:11]} 42. Nd3 {[%emt 0:00:11]} Nd7 {[%emt 0:01:04]} 43. cxb5 {[%emt 0:00:11]} Rf6 {[%emt 0:01:23]} 44. a4 {[%emt 0:00:41]} Rf5 {[%emt 0:00:34]} 45. Rc2 {[%emt 0:03:35]} Rd5 {[%emt 0:00:59]} 46. Ke2 {[%emt 0:01:23]} Kf6 {[%emt 0:00:39]} 47. Rc7 {[%emt 0:01:31]} Kf5 {[%emt 0:01:05]} 48. Rxa7 {[%emt 0:01:32]} Ne5 {[%emt 0:00:12]} 49. Nxe5 {[%emt 0:00:09]} Rxe5+ {[%emt 0:00:03]} 50. Kd2 {[%emt 0:00:07]} Rd5+ {[%emt 0:00:02]} 51. Kc2 {[%emt 0:00:13]} Re5 {[%emt 0:00:11]} 52. Rd7 {[%emt 0:00:07]} Re2+ {[%emt 0:01:55]} 53. Rd2 {[%emt 0:00:04]} Re5 {[%emt 0:00:09]} 54. b6 {[%emt 0:00:15]} Rc5+ {[%emt 0:00:31]} 55. Kd3 {[%emt 0:00:12]} Kf4 {[%emt 0:00:33]} 56. b4 {[%emt 0:00:24]} Rc6 {[%emt 0:01:07]} 57. a5 {[%emt 0:00:06]} 1-0

[Event "Argentine Youth-Junior-ch 2025"]
[Site "Mar del Plata"]
[Date "2025.04.18"]
[Round "5.3"]
[White "Izaguirre, Lucia Belen"]
[Black "Gaite, Karen Nerina"]
[Result "1/2-1/2"]
[Annotator "NA RC"]
[ECO "C78"]
[WhiteElo "1725"]
[BlackElo "2031"]
[PlyCount "74"]
[EventDate "2025.04.14"]
[EventType "swiss"]
[EventCountry "ARG"]
[SourceTitle "playchess.com"]
[Source "ChessBase"]
[SourceQuality "1"]
[TimeControl "3600+30"]

1. e4 {[%emt 0:00:06]} e5 {[%emt 0:00:11]} 2. Nf3 {[%emt 0:00:08]} Nc6 {[%emt 0:00:05]} 3. Bb5 {[%emt 0:00:05]} a6 {[%emt 0:00:07]} 4. Ba4 {[%emt 0:00:09]} Nf6 {[%emt 0:00:07]} 5. O-O {[%emt 0:00:08]} b5 {[%emt 0:00:04]} 6. Bb3 {[%emt 0:00:23]} Bc5 {[%emt 0:00:22]} 7. a4 {[%emt 0:00:45]} Rb8 {[%emt 0:00:31]} 8. axb5 {[%emt 0:00:35]} axb5 {[%emt 0:00:25]} 9. Nxe5 {[%emt 0:02:27]} Nxe5 {[%emt 0:05:17]} 10. d4 {[%emt 0:00:21]} Bxd4 {[%emt 0:03:20]} 11. Qxd4 {[%emt 0:00:14]} d6 {[%emt 0:08:39]} 12. f4 {[%emt 0:03:06]} c5 {[%emt 0:08:05]} 13. Qc3 {[%emt 0:13:28]} Ng6 {[%emt 0:04:13]} 14. e5 {[%emt 0:16:40]} b4 {[%emt 0:11:55]} 15. Qe1 {[%emt 0:10:04]} dxe5 {[%emt 0:03:11]} 16. f5 {[%emt 0:02:27]} Ne7 {[%emt 0:05:24]} 17. Qg3 {[%emt 0:08:29]} O-O {[%emt 0:07:21]} 18. Qxe5 {[%emt 0:02:18]} Nc6 {[%emt 0:04:35]} 19. Qxc5 {[%emt 0:01:56]} Nd4 {[%emt 0:00:40]} 20. Qc4 {[%emt 0:02:25]} Nxf5 {[%emt 0:01:36]} 21. Bf4 {[%emt 0:02:15]} Qb6+ {[%emt 0:00:27]} 22. Kh1 {[%emt 0:01:07]} Ne3 {[%emt 0:00:51]} 23. Bxe3 {[%emt 0:00:16]} Qxe3 {[%emt 0:00:01]} 24. Qf4 {[%emt 0:00:45]} Qxf4 {[%emt 0:01:19]} 25. Rxf4 {[%emt 0:00:01]} Rd8 {[%emt 0:00:01]} 26. Kg1 {[%emt 0:00:41]} Nd5 {[%emt 0:03:57]} 27. Rd4 {[%emt 0:00:45]} Be6 {[%emt 0:00:01]} 28. Nd2 {[%emt 0:00:32]} Nc7 {[%emt 0:00:20]} 29. Rxd8+ {[%emt 0:01:03]} Rxd8 {[%emt 0:00:00]} 30. Bxe6 {[%emt 0:00:06]} Nxe6 {[%emt 0:00:05]} 31. Nb3 {[%emt 0:01:32]} g5 {[%emt 0:00:45]} 32. Kf2 {[%emt 0:00:39]} Rc8 {[%emt 0:00:24]} 33. Rc1 {[%emt 0:00:15]} Kg7 {[%emt 0:00:18]} 34. c3 {[%emt 0:00:39]} Nf4 {[%emt 0:00:14]} 35. Rc2 {[%emt 0:00:24]} bxc3 {[%emt 0:00:57]} 36. bxc3 {[%emt 0:00:30]} Kf6 {[%emt 0:00:39]} 37. Nd4 {[%emt 0:00:33]} Rc4 {[%emt 0:01:04]} 1/2-1/2

[Event "Argentine Youth-Junior-ch 2025"]
[Site "Mar del Plata"]
[Date "2025.04.18"]
[Round "5.4"]
[White "Villordo, Matias"]
[Black "Fuentes, Agustin"]
[Result "1-0"]
[Annotator "NA"]
[ECO "C45"]
[WhiteElo "2055"]
[BlackElo "2006"]
[PlyCount "90"]
[EventDate "2025.04.14"]
[EventType "swiss"]
[EventCountry "ARG"]
[SourceTitle "playchess.com"]
[Source "ChessBase"]
[SourceQuality "1"]
[TimeControl "3600+30"]

1. e4 {[%emt 0:00:06]} e5 {[%emt 0:00:13]} 2. Nf3 {[%emt 0:00:21]} Nc6 {[%emt 0:00:14]} 3. d4 {[%emt 0:00:31]} exd4 {[%emt 0:00:31]} 4. Nxd4 {[%emt 0:00:26]} Bc5 {[%emt 0:00:34]} 5. Nb3 {[%emt 0:00:40]} Bb6 {[%emt 0:00:36]} 6. Qe2 {[%emt 0:00:50]} Nf6 {[%emt 0:00:40]} 7. e5 {[%emt 0:01:01]} Nd5 {[%emt 0:00:46]} 8. c4 {[%emt 0:00:45]} Ndb4 {[%emt 0:00:44]} 9. c5 {[%emt 0:01:21]} Bxc5 {[%emt 0:00:16]} 10. Nxc5 {[%emt 0:00:16]} Nd4 {[%emt 0:00:11]} 11. Qg4 {[%emt 0:00:15]} Ndc2+ {[%emt 0:01:07]} 12. Ke2 {[%emt 0:00:17]} Kf8 {[%emt 0:00:41]} 13. Na3 {[%emt 0:01:00]} d6 {[%emt 0:01:02]} 14. Qc4 {[%emt 0:00:35]} b5 {[%emt 0:00:15]} 15. Qc3 {[%emt 0:03:52]} Nxa3 {[%emt 0:04:57]} 16. bxa3 {[%emt 0:17:56]} Nd5 {[%emt 0:00:35]} 17. Qc2 {[%emt 0:03:33]} dxc5 {[%emt 0:01:32]} 18. Qxc5+ {[%emt 0:00:14]} Kg8 {[%emt 0:02:07]} 19. f3 {[%emt 0:00:35]} c6 {[%emt 0:05:42]} 20. Kf2 {[%emt 0:08:00]} Qb6 {[%emt 0:06:28]} 21. Be3 {[%emt 0:02:09]} Be6 {[%emt 0:06:37]} 22. Bd3 {[%emt 0:03:00]} Nxe3 {[%emt 0:03:34]} 23. Qxe3 {[%emt 0:00:55]} Rd8 {[%emt 0:05:38]} 24. Rhd1 {[%emt 0:02:46]} Bd5 {[%emt 0:03:55]} 25. Be4 {[%emt 0:01:55]} Qxe3+ {[%emt 0:04:31]} 26. Kxe3 {[%emt 0:00:19]} Kf8 {[%emt 0:04:46]} 27. Bxd5 {[%emt 0:00:49]} cxd5 {[%emt 0:00:38]} 28. Rac1 {[%emt 0:00:12]} Ke7 {[%emt 0:00:59]} 29. Rc7+ {[%emt 0:03:59]} Ke6 {[%emt 0:00:05]} 30. Kd4 {[%emt 0:03:19]} Rd7 {[%emt 0:05:15]} 31. Rdc1 {[%emt 0:02:33]} Rhd8 {[%emt 0:00:05]} 32. g4 {[%emt 0:01:57]} a5 {[%emt 0:02:36]} 33. R1c6+ {[%emt 0:01:38]} Ke7 {[%emt 0:00:02]} 34. Rc5 {[%emt 0:02:12]} Rb8 {[%emt 0:01:55]} 35. Rxd7+ {[%emt 0:00:31]} Kxd7 {[%emt 0:00:03]} 36. Kxd5 {[%emt 0:00:09]} a4 {[%emt 0:01:33]} 37. f4 {[%emt 0:01:44]} b4 {[%emt 0:02:16]} 38. axb4 {[%emt 0:00:18]} Rxb4 {[%emt 0:00:09]} 39. Rc4 {[%emt 0:00:10]} Rb5+ {[%emt 0:00:05]} 40. Ke4 {[%emt 0:00:38]} Rb2 {[%emt 0:00:52]} 41. Rxa4 {[%emt 0:00:22]} Rxh2 {[%emt 0:00:12]} 42. Ra7+ {[%emt 0:00:21]} Ke8 {[%emt 0:00:05]} 43. a4 {[%emt 0:00:31]} Ra2 {[%emt 0:02:01]} 44. a5 {[%emt 0:00:23]} Ra4+ {[%emt 0:01:02]} 45. Kf3 {[%emt 0:00:43]} Ra3+ {[%emt 0:01:17]} 1-0

[Event "Argentine Youth-Junior-ch 2025"]
[Site "Mar del Plata"]
[Date "2025.04.18"]
[Round "5.5"]
[White "Veliz, Daira Isis"]
[Black "Benitez, Agustina"]
[Result "1-0"]
[Annotator "NA RC"]
[ECO "E11"]
[WhiteElo "1789"]
[BlackElo "1804"]
[PlyCount "71"]
[EventDate "2025.04.14"]
[EventType "swiss"]
[EventCountry "ARG"]
[SourceTitle "playchess.com"]
[Source "ChessBase"]
[SourceQuality "1"]
[TimeControl "3600+30"]

1. d4 {[%emt 0:03:14]} Nf6 {[%emt 0:00:08]} 2. c4 {[%emt 0:00:19]} e6 {[%emt 0:00:36]} 3. Nf3 {[%emt 0:00:34]} Bb4+ {[%emt 0:00:36]} 4. Nbd2 {[%emt 0:00:28]} O-O {[%emt 0:00:17]} 5. a3 {[%emt 0:00:18]} Be7 {[%emt 0:01:02]} 6. e3 {[%emt 0:00:12]} d6 {[%emt 0:00:35]} 7. b3 {[%emt 0:02:26]} b6 {[%emt 0:02:00]} 8. Bb2 {[%emt 0:00:24]} Nbd7 {[%emt 0:02:03]} 9. Bd3 {[%emt 0:01:26]} Bb7 {[%emt 0:01:10]} 10. O-O {[%emt 0:00:25]} Re8 {[%emt 0:03:48]} 11. Rc1 {[%emt 0:04:53]} c5 {[%emt 0:06:55]} 12. Qc2 {[%emt 0:09:15]} h6 {[%emt 0:03:26]} 13. Ne4 {[%emt 0:05:43]} Qc7 {[%emt 0:22:59]} 14. Rfd1 {[%emt 0:07:37]} d5 {[%emt 0:03:16]} 15. cxd5 {[%emt 0:01:33]} exd5 {[%emt 0:00:02]} 16. Ng3 {[%emt 0:00:19]} Ne4 {[%emt 0:00:31]} 17. Nxe4 {[%emt 0:29:54]} dxe4 {[%emt 0:00:12]} 18. Bxe4 {[%emt 0:00:00]} Bxe4 {[%emt 0:00:14]} 19. Qxe4 {[%emt 0:00:00]} Bd6 {[%emt 0:01:52]} 20. Qh4 {[%emt 0:00:00]} Be7 {[%emt 0:01:33]} 21. Qh3 {[%emt 0:00:00]} Bf6 {[%emt 0:01:48]} 22. dxc5 {[%emt 0:00:00]} Bxb2 {[%emt 0:01:08]} 23. Rxd7 {[%emt 0:00:00]} Qc8 {[%emt 0:03:46]} 24. Rc2 {[%emt 0:00:00]} Bxa3 {[%emt 0:01:02]} 25. c6 {[%emt 0:00:00]} Bc5 {[%emt 0:01:50]} 26. Qf5 {[%emt 0:00:00]} f6 {[%emt 0:03:14]} 27. Qd5+ {[%emt 0:00:00]} Kh8 {[%emt 0:00:35]} 28. Qf7 {[%emt 0:00:00]} Rg8 {[%emt 0:00:32]} 29. c7 {[%emt 0:00:00]} Qa6 {[%emt 0:01:26]} 30. Rcd2 {[%emt 0:00:00]} Raf8 {[%emt 0:03:20]} 31. Qd5 {[%emt 0:00:00]} Qc8 {[%emt 0:00:22]} 32. Nh4 {[%emt 0:00:00]} Re8 {[%emt 0:01:47]} 33. Ng6+ {[%emt 0:00:00]} Kh7 {[%emt 0:00:07]} 34. Qf5 {[%emt 0:00:00]} Rxe3 {[%emt 0:01:07]} 35. Nf8+ {[%emt 0:00:00]} Kh8 {[%emt 0:00:10]} 36. Qh7# {[%emt 0:00:00]} 1-0

[Event "Argentine Youth-Junior-ch 2025"]
[Site "Mar del Plata"]
[Date "2025.04.18"]
[Round "5.6"]
[White "Luchetti, Ivan"]
[Black "Martinez, Valentin Jesus"]
[Result "0-1"]
[Annotator "NA RC"]
[ECO "C45"]
[WhiteElo "1964"]
[BlackElo "2037"]
[PlyCount "72"]
[EventDate "2025.04.14"]
[EventType "swiss"]
[EventCountry "ARG"]
[SourceTitle "playchess.com"]
[Source "ChessBase"]
[SourceQuality "1"]
[TimeControl "3600+30"]

1. e4 {[%emt 0:00:04]} e5 {[%emt 0:00:58]} 2. Nf3 {[%emt 0:00:12]} Nc6 {[%emt 0:00:33]} 3. d4 {[%emt 0:00:10]} exd4 {[%emt 0:01:24]} 4. Nxd4 {[%emt 0:00:05]} Qf6 {[%emt 0:00:16]} 5. Nb3 {[%emt 0:00:07]} Qg6 {[%emt 0:00:58]} 6. f3 {[%emt 0:00:16]} Bb4+ {[%emt 0:02:18]} 7. c3 {[%emt 0:02:12]} Be7 {[%emt 0:00:55]} 8. Bf4 {[%emt 0:01:14]} d6 {[%emt 0:03:36]} 9. Qd2 {[%emt 0:02:57]} Nf6 {[%emt 0:04:30]} 10. Na3 {[%emt 0:00:48]} Bd7 {[%emt 0:09:11]} 11. Nb5 {[%emt 0:05:13]} Rc8 {[%emt 0:07:00]} 12. c4 {[%emt 0:04:47]} O-O {[%emt 0:08:03]} 13. Bd3 {[%emt 0:14:43]} Ne5 {[%emt 0:00:16]} 14. Nc3 {[%emt 0:01:22]} Nh5 {[%emt 0:09:17]} 15. Bxe5 {[%emt 0:18:33]} dxe5 {[%emt 0:00:39]} 16. h4 {[%emt 0:04:20]} Rfd8 {[%emt 0:08:04]} 17. Nd5 {[%emt 0:01:04]} Qg3+ {[%emt 0:02:19]} 18. Qf2 {[%emt 0:02:14]} Bf8 {[%emt 0:00:49]} 19. Rd1 {[%emt 0:02:04]} a5 {[%emt 0:08:00]} 20. Nd2 {[%emt 0:00:35]} Bc5 {[%emt 0:00:28]} 21. Qxg3 {[%emt 0:00:36]} Nxg3 {[%emt 0:00:01]} 22. Rh2 {[%emt 0:02:38]} c6 {[%emt 0:00:01]} 23. Nc3 {[%emt 0:00:21]} Bg1 {[%emt 0:00:11]} 24. Nf1 {[%emt 0:00:47]} Bxh2 {[%emt 0:01:04]} 25. Nxh2 {[%emt 0:00:02]} f5 {[%emt 0:00:48]} 26. Kf2 {[%emt 0:00:47]} f4 {[%emt 0:00:21]} 27. Na4 {[%emt 0:00:02]} Be6 {[%emt 0:00:57]} 28. b3 {[%emt 0:01:15]} Kf7 {[%emt 0:00:34]} 29. Ng4 {[%emt 0:00:49]} Bxg4 {[%emt 0:00:34]} 30. fxg4 {[%emt 0:00:02]} Nxe4+ {[%emt 0:00:11]} 31. Kf3 {[%emt 0:00:37]} Nf6 {[%emt 0:00:34]} 32. Nc5 {[%emt 0:00:42]} b6 {[%emt 0:00:16]} 33. g5 {[%emt 0:01:51]} bxc5 {[%emt 0:00:29]} 34. gxf6 {[%emt 0:00:01]} Rd4 {[%emt 0:01:00]} 35. Bf5 {[%emt 0:00:47]} Rxd1 {[%emt 0:00:23]} 36. Bxc8 {[%emt 0:00:51]} Kxf6 {[%emt 0:01:32]} 0-1

[Event "Argentine Youth-Junior-ch 2025"]
[Site "Mar del Plata"]
[Date "2025.04.18"]
[Round "5.7"]
[White "Simbler, Facundo"]
[Black "Hilt, Juan Ignacio"]
[Result "0-1"]
[Annotator "NA RC"]
[ECO "C97"]
[WhiteElo "1928"]
[BlackElo "2035"]
[PlyCount "78"]
[EventDate "2025.04.14"]
[EventType "swiss"]
[EventCountry "ARG"]
[SourceTitle "playchess.com"]
[Source "ChessBase"]
[SourceQuality "1"]
[TimeControl "3600+30"]

1. e4 {[%emt 0:00:02]} e5 {[%emt 0:00:06]} 2. Nf3 {[%emt 0:00:05]} Nc6 {[%emt 0:00:03]} 3. Bb5 {[%emt 0:00:06]} a6 {[%emt 0:00:10]} 4. Ba4 {[%emt 0:00:05]} Nf6 {[%emt 0:00:07]} 5. O-O {[%emt 0:00:06]} Be7 {[%emt 0:00:10]} 6. Re1 {[%emt 0:00:05]} b5 {[%emt 0:00:04]} 7. Bb3 {[%emt 0:00:04]} d6 {[%emt 0:00:13]} 8. c3 {[%emt 0:00:12]} O-O {[%emt 0:00:13]} 9. h3 {[%emt 0:00:07]} Na5 {[%emt 0:00:12]} 10. Bc2 {[%emt 0:00:06]} c5 {[%emt 0:00:05]} 11. d4 {[%emt 0:00:15]} Qc7 {[%emt 0:00:07]} 12. d5 {[%emt 0:00:20]} Nc4 {[%emt 0:00:26]} 13. b3 {[%emt 0:01:08]} Nb6 {[%emt 0:00:17]} 14. a4 {[%emt 0:00:38]} c4 {[%emt 0:00:16]} 15. axb5 {[%emt 0:00:37]} cxb3 {[%emt 0:00:26]} 16. Bxb3 {[%emt 0:00:11]} axb5 {[%emt 0:01:10]} 17. Rxa8 {[%emt 0:00:09]} Nxa8 {[%emt 0:00:09]} 18. Ba3 {[%emt 0:01:47]} Nd7 {[%emt 0:03:16]} 19. Bb4 {[%emt 0:09:35]} Nc5 {[%emt 0:04:13]} 20. Bc2 {[%emt 0:01:22]} Nb6 {[%emt 0:01:27]} 21. Na3 {[%emt 0:08:08]} Bd7 {[%emt 0:02:15]} 22. Qe2 {[%emt 0:00:31]} Rb8 {[%emt 0:09:40]} 23. Rd1 {[%emt 0:19:11]} Na6 {[%emt 0:14:43]} 24. Bd3 {[%emt 0:11:15]} Nxb4 {[%emt 0:09:40]} 25. cxb4 {[%emt 0:00:10]} Qc3 {[%emt 0:00:47]} 26. Nxb5 {[%emt 0:01:46]} Bxb5 {[%emt 0:00:32]} 27. Bxb5 {[%emt 0:00:08]} Qxb4 {[%emt 0:00:54]} 28. Bc6 {[%emt 0:04:39]} Na4 {[%emt 0:01:31]} 29. Bxa4 {[%emt 0:01:09]} Qxa4 {[%emt 0:21:48]} 30. Rc1 {[%emt 0:00:35]} g6 {[%emt 0:00:00]} 31. Qd3 {[%emt 0:03:04]} Rb4 {[%emt 0:00:00]} 32. Nd2 {[%emt 0:02:12]} Kg7 {[%emt 0:00:00]} 33. f3 {[%emt 0:05:50]} Bg5 {[%emt 0:00:00]} 34. Rc2 {[%emt 0:00:44]} Qa1+ {[%emt 0:00:00]} 35. Kf2 {[%emt 0:00:27]} Bh4+ {[%emt 0:00:00]} 36. g3 {[%emt 0:00:04]} Bxg3+ {[%emt 0:00:31]} 37. Kg2 {[%emt 0:01:19]} Bf4 {[%emt 0:00:38]} 38. Nc4 {[%emt 0:00:42]} Rb1 {[%emt 0:00:55]} 39. Ne3 {[%emt 0:00:33]} Rg1+ {[%emt 0:00:10]} 0-1

[Event "Argentine Youth-Junior-ch 2025"]
[Site "Mar del Plata"]
[Date "2025.04.18"]
[Round "5.8"]
[White "Medina Baquiro, Paula Andrea"]
[Black "Donda, Jazmin"]
[Result "0-1"]
[Annotator "NA RC"]
[ECO "D00"]
[WhiteElo "1617"]
[BlackElo "1919"]
[PlyCount "66"]
[EventDate "2025.04.14"]
[EventType "swiss"]
[EventCountry "ARG"]
[SourceTitle "playchess.com"]
[Source "ChessBase"]
[SourceQuality "1"]
[TimeControl "3600+30"]

1. d4 {[%emt 0:00:09]} d5 {[%emt 0:00:54]} 2. e3 {[%emt 0:00:11]} Nf6 {[%emt 0:00:20]} 3. f4 {[%emt 0:00:26]} Bf5 {[%emt 0:01:14]} 4. Nf3 {[%emt 0:00:17]} e6 {[%emt 0:00:43]} 5. c3 {[%emt 0:00:31]} c6 {[%emt 0:00:18]} 6. Ne5 {[%emt 0:00:25]} Ne4 {[%emt 0:00:41]} 7. Nf3 {[%emt 0:01:00]} Nd7 {[%emt 0:02:07]} 8. Bd3 {[%emt 0:00:23]} Ndf6 {[%emt 0:01:30]} 9. Qe2 {[%emt 0:00:42]} Be7 {[%emt 0:02:26]} 10. O-O {[%emt 0:01:34]} Bg4 {[%emt 0:04:04]} 11. Nbd2 {[%emt 0:00:50]} Qc7 {[%emt 0:03:01]} 12. Qe1 {[%emt 0:02:22]} Bf5 {[%emt 0:01:40]} 13. Be2 {[%emt 0:04:31]} h6 {[%emt 0:05:13]} 14. a3 {[%emt 0:54:09]} Bd6 {[%emt 0:03:36]} 15. Nxe4 Nxe4 {[%emt 0:00:06]} 16. Bd3 {[%emt 0:00:00]} g5 {[%emt 0:01:57]} 17. c4 {[%emt 0:00:00]} gxf4 {[%emt 0:06:39]} 18. c5 {[%emt 0:02:00]} Be7 19. exf4 {[%emt 0:00:00]} O-O-O {[%emt 0:02:10]} 20. Ne5 {[%emt 0:01:00]} Rh7 {[%emt 0:01:43]} 21. b4 {[%emt 0:00:00]} Rg8 {[%emt 0:02:06]} 22. Bxe4 {[%emt 0:00:00]} Bxe4 {[%emt 0:00:06]} 23. Qe2 {[%emt 0:00:00]} Rxg2+ {[%emt 0:01:46]} 24. Qxg2 {[%emt 0:00:00]} Bxg2 {[%emt 0:00:01]} 25. Kxg2 {[%emt 0:00:00]} f6 {[%emt 0:00:04]} 26. Nd3 {[%emt 0:03:00]} Qd7 27. Kf3 {[%emt 0:00:00]} e5 {[%emt 0:02:03]} 28. dxe5 {[%emt 0:00:00]} Qh3+ {[%emt 0:00:07]} 29. Ke2 {[%emt 0:00:00]} Rg7 {[%emt 0:01:31]} 30. Rf2 {[%emt 0:00:00]} fxe5 {[%emt 0:27:24]} 31. fxe5 {[%emt 0:02:30]} Bh4 {[%emt 0:00:00]} 32. Bxh6 {[%emt 0:00:00]} Bxf2 {[%emt 0:00:00]} 33. Bxg7 {[%emt 0:00:00]} Bd4 {[%emt 0:00:00]} 0-1